Cogmind - Beta 16 @@@ ROGUE MODE // 2025.10.28 @ 16:53:43 Player: MAXX-P31 Result: Destroyed by P-70 Sage with High-powered Shock Rifle Performance ------------- Evolutions (6) 3000 Regions Visited (9) 1800 Robots Destroyed (339) 1695 Value Destroyed (12560) 12560 Prototype IDs (10) 200 Alien Tech Used (0) 0 Bonus (4326) 4326 TOTAL SCORE: 23581 Bonus ------- High Alert Combat Kills 3152 Follower Combat Kills 1255 Friendly Fire -81 Cogmind --------- Core Integrity 0/1150 Matter 274/300 Energy 286/500 System Corruption 53% Temperature Cool (0) Movement Core (1600) Ox31 Location -4/Factory Parts ------- > --- POWER (2) -------- (None) > --- PROPULSION (4) --- Armored Medium Treads Armored Medium Treads > --- UTILITY (9) ------ Advanced Heat Sink Huge Storage Unit Improved Energy Well Advanced Visual Processing Unit Transport Network Coupler Improved Target Analyzer Advanced Target Analyzer > --- WEAPON (4) ------- Coil Gun Coil Gun > --- INVENTORY (25) --- Light Ion Engine Light Antimatter Reactor Carbon-fiber Leg Enhanced Armored Leg Improved Heat Sink Advanced Heat Sink Improved Cooling System High-capacity Storage Unit Energy Well (350) Energy Well (350) Large Matter Pod (150) Advanced Sensor Array Improved Recalibrator Plasma Cutter Peak State ------------ > --- POWER ------------ Reinforced Fission Core Light Antimatter Reactor > --- PROPULSION ------- Improved Treads Armored Medium Treads Armored Medium Treads Armored Medium Treads > --- UTILITY ---------- Advanced Cryofiber Web Improved Heat Sink Huge Storage Unit Improved Energy Well Advanced Visual Processing Unit Advanced Sensor Array Transport Network Coupler Improved Target Analyzer Advanced Target Analyzer > --- WEAPON ----------- High-powered Shock Rifle Tesla Rifle High-powered Shotgun KE Penetrator > --- INVENTORY -------- Light Ion Engine Light Antimatter Reactor Carbon-fiber Leg Enhanced Armored Leg Improved Heat Sink Advanced Heat Sink Advanced Heat Sink Improved Cooling System High-capacity Storage Unit Energy Well Energy Well Large Matter Pod Improved Recalibrator Heavy Disruptor Cannon Coil Gun Coil Gun Plasma Cutter [Rating: 99] Favorites ----------- Power Heavy Ion Engine Engine Heavy Ion Engine Power Core Neutrino Core Reactor Light Antimatter Reactor Propulsion Light Treads Treads Light Treads Leg Carbon-fiber Leg Wheel Compact Wheel Utility Huge Storage Unit Device Improved Cooling System Storage Huge Storage Unit Processor Transport Network Coupler Hackware Hacking Suite Weapon Gatling Laser Energy Gun Gatling Laser Energy Cannon Heavy Plasma Cannon Ballistic Gun Heavy Assault Rifle Ballistic Cannon Heavy Mass Driver Launcher Heavy Rocket Launcher Special Weapon Plasma Cutter Build | -11 -10 -10 -9 -8 -7 -6 -5 -5 -4 ------- Run | Yrd Mat Min Mat Mat Fac Fac Fac Ext Fac Slots Evolved 12 | . . . 2 2 2 2 2 . 2 Power 1 | . . . . . . . 1 . . Propulsion 2 | . . . . 1 . . 1 . . Utility 7 | . . . . 1 2 2 . . 2 Weapon 2 | . . . 2 . . . . . . Parts Attached 201 | 6 6 . 11 21 24 63 9 16 45 Power 19 | 1 . . 2 1 1 8 1 1 4 Engine 13 | 1 . . 2 1 1 6 1 . 1 Core 5 | . . . . . . 2 . 1 2 Reactor 1 | . . . . . . . . . 1 Propulsion 57 | 2 . . 4 8 6 17 3 7 10 Treads 47 | 2 . . 4 8 6 13 . 7 7 Leg 7 | . . . . . . 1 3 . 3 Wheel 3 | . . . . . . 3 . . . Hover . | . . . . . . . . . . Flight . | . . . . . . . . . . Utility 43 | 2 2 . . 2 6 16 1 3 11 Device 28 | 1 . . . 1 3 13 1 3 6 Storage 7 | 1 2 . . . . 2 . . 2 Processor 7 | . . . . . 3 1 . . 3 Hackware 1 | . . . . 1 . . . . . Protection . | . . . . . . . . . . Artifact . | . . . . . . . . . . Weapon 82 | 1 4 . 5 10 11 22 4 5 20 Energy Gun 28 | . . . . . 5 10 2 3 8 Energy Cannon 8 | . . . 1 . 1 2 . . 4 Ballistic Gun 35 | 1 3 . 4 9 4 6 1 2 5 Ballistic Cannon 3 | . . . . . . . . . 3 Launcher 7 | . 1 . . 1 1 4 . . . Special Weapon 1 | . . . . . . . 1 . . Impact Weapon . | . . . . . . . . . . Slashing Weapon . | . . . . . . . . . . Piercing Weapon . | . . . . . . . . . . Special Melee Weapon . | . . . . . . . . . . Unidentified Prototypes 8 | . . . 1 1 2 1 . . 3 Corrupted Parts 4 | . . . . . . 1 . . 3 System Corruption 27 | . . . . . . 2 . . 25 Parts Lost 100 | . . . 1 4 4 27 2 7 55 Power 10 | . . . . 1 1 1 . 1 6 Propulsion 30 | . . . 1 2 2 10 . 3 12 Utility 21 | . . . . . 1 7 2 1 10 Weapon 39 | . . . . 1 . 9 . 2 27 Highest Loss Streak 19 | . . . 1 1 2 6 1 3 19 To Critical Strikes 2 | . . . . 1 . . . 1 . Average Backups 22 | 2 13 19 19 23 24 24 24 24 21 Power 1 | . 1 1 1 2 . 1 . 1 1 Propulsion 3 | . 1 2 4 3 3 2 4 5 4 Utility 6 | . 2 6 6 7 7 7 7 6 7 Weapon 10 | 1 7 9 7 9 11 11 11 10 7 Tool/Special . | . . . . . . . . . . Unused Backups 26 | . . . 5 2 8 2 . . 9 Power 5 | . . . 1 . 1 1 . . 2 Propulsion 6 | . . . 3 . 1 . . . 2 Utility 7 | . . . . . 2 . . . 5 Weapon 8 | . . . 1 2 4 1 . . . Tool/Special . | . . . . . . . . . . Average Slot Usage (%) 98 | . 99 100 99 99 99 98 98 99 90 Engine 7 | . 14 14 11 8 7 5 10 8 3 Core 1 | . . . . . . . . 1 4 Treads 19 | . 28 28 21 26 22 18 . 13 13 Leg 2 | . . . . . . . 22 9 3 Device 16 | . 14 14 11 9 11 19 21 23 23 Storage 8 | . 14 14 11 9 7 9 5 5 6 Processor 8 | . . . . . 10 11 11 11 14 Hackware 3 | . . . . 8 7 3 . . . Energy Gun 9 | . . . . . 17 14 17 11 5 Energy Cannon 1 | . . . . . . . 2 6 5 Ballistic Gun 14 | . 24 28 43 35 12 9 . 3 3 Peak Build Rating 99 | 6 11 11 18 27 48 67 79 79 99 Average Rating 48 | 4 9 11 16 24 40 55 75 73 86 On Entrance 31 | . 6 11 11 18 25 45 57 74 71 Avg Prop Armor Cover (%) 10 | . . . . . . 10 . 4 10 Naked Turns . | . . . . . . . . . . Heaviest Build 143 | 13 92 52 61 102 108 125 133 138 143 Greatest Support 104 | 40 40 40 40 60 64 78 65 99 104 Greatest Overweight (x) 8 | . 2 1 1 2 2 7 2 2 8 Average Overweight (x) 1 | . 1 1 1 1 1 1 1 1 3 Largest Inventory Capacity 25 | 8 25 20 20 25 25 25 25 25 25 Average Capacity 24 | 6 20 20 20 24 25 25 25 25 25 Most Carried 25 | 3 19 20 20 25 25 25 25 25 25 Average Carried 22 | 2 13 19 19 23 24 24 24 24 21 Final Capacity 25 | 8 20 20 20 25 25 25 25 25 25 Final Carried 25 | 3 19 20 20 25 25 25 24 22 14 Class Distribution -------------------- 41% | Scavenger-Skirmisher 36% | Scavenger-Gunner 11% | Mutant 8% | Scavenger-Tank Dominant Class ---------------- Mutant | -10/Materials Mutant | -10/Mines Scavenger-Gunner | -9/Materials Scavenger-Gunner | -8/Materials Scavenger-Skirmisher | -7/Factory Scavenger-Skirmisher | -6/Factory Scavenger-Skirmisher | -5/Factory Scavenger-Skirmisher | -5/Extension Scavenger-Skirmisher | -4/Factory Resources | -11 -10 -10 -9 -8 -7 -6 -5 -5 -4 ----------- Run | Yrd Mat Min Mat Mat Fac Fac Fac Ext Fac Matter Collected 8370 | 278 486 215 590 1293 789 2492 259 611 1357 Remotely . | . . . . . . . . . . Salvage Created 15385 | 106 681 50 1127 1796 1883 5645 200 1485 2412 Parts 667 | 9 47 . 53 98 61 225 5 74 95 Haulers Intercepted 14 | . 1 . 2 4 3 2 . 1 1 Recyclers Shooed 14 | . 1 . 2 . 1 9 . 1 . Parts Field Recycled . | . . . . . . . . . . Retrieved Matter . | . . . . . . . . . . Parts Self-Destructed . | . . . . . . . . . . Prevented . | . . . . . . . . . . Parts Restored . | . . . . . . . . . . Kills | -11 -10 -10 -9 -8 -7 -6 -5 -5 -4 ------- Run | Yrd Mat Min Mat Mat Fac Fac Fac Ext Fac Combat Hostiles Destroyed 236 | . 12 3 13 30 25 83 7 27 36 Guns 162 | . 8 3 13 27 22 56 2 18 13 Cannons 21 | . . . . . 1 6 1 5 8 AOE 38 | . 4 . . 3 . 13 4 3 11 Classes Destroyed 20 | 2 7 1 1 1 3 5 . . . Worker 17 | . . . . 1 5 8 1 1 1 Builder 20 | . 3 . 1 3 . 5 . 2 6 Tunneler 5 | 1 . . . 1 1 2 . . . Hauler 14 | . 1 . 2 4 3 2 . 1 1 Recycler 34 | 1 3 . 6 4 9 7 . 1 3 Mechanic 5 | . 1 . . . . 3 . . 1 Operator 5 | . 1 . . 2 . 2 . . . Watcher 6 | . 1 . 1 1 1 2 . . . Swarmer 47 | . 3 . 4 10 5 . 5 16 4 Saboteur 2 | . . . . . . 2 . . . Grunt 87 | . 9 . 4 15 6 43 . 2 8 Brawler 7 | . . . . . 1 5 . 1 . Duelist 1 | . . . . . . 1 . . . Sentry 33 | . . . 5 5 7 9 . 5 2 Specialist 4 | . . . . . . 2 . . 2 Hunter 15 | . . . . . 2 5 . . 8 Programmer 28 | . . . . . 4 12 2 . 10 Heavy 5 | . . . . . . 3 . . 2 Behemoth 3 | . . . . . . 1 . 2 . Assembled 3 | . . 3 . . . . . . . Thug 1 | . . . . . . . . 1 . Best Kill Streak 11 | 2 3 2 7 6 6 11 4 8 10 Combat Bots Only 8 | . 3 2 4 6 5 6 4 8 5 Max Kills in Single Turn 4 | 1 2 1 2 3 2 3 3 3 4 Gunslinging 1 | . . . . 1 1 1 . 1 . Exploded 3 | . 1 . . 3 . 2 3 3 3 Melee . | . . . . . . . . . . Uniques/NPCs Destroyed . | . . . . . . . . . . Combat | -11 -10 -10 -9 -8 -7 -6 -5 -5 -4 -------- Run | Yrd Mat Min Mat Mat Fac Fac Fac Ext Fac Hostile Shots Fired 1584 | . 34 18 29 100 253 373 23 101 653 Missed 517 | . 16 5 11 20 94 128 9 29 205 Hits 1067 | . 18 13 18 80 159 245 14 72 448 Melee 7 | . . 2 . . 1 4 . . . Projectile 1060 | . 18 11 18 80 158 241 14 72 448 AOE 6 | . . 2 . . . . . 3 1 Critical Strikes 49 | . . 1 . 3 1 17 1 1 25 Actively Blocked 18 | . . . . . . . . . 18 Part Disruptions 9 | . . . . . . 2 . . 7 Damage Taken 18134 | . 219 257 253 1187 1521 4381 348 1495 8473 Core 2227 | . 35 22 6 115 190 570 19 108 1162 Absorbed by Shields 791 | . . . . . 162 192 . 437 . Core Remaining (%) 77 | 100 . 77 98 79 72 32 . 87 . Volleys Fired 629 | 6 52 11 31 79 74 189 24 54 109 Largest 4 | 1 2 2 4 4 4 4 4 4 4 Hottest 351 | 20 50 46 92 98 320 320 290 337 351 Shots Fired 2010 | 6 90 22 124 302 290 641 46 204 285 Gun 1765 | 6 81 22 124 300 285 573 34 154 186 Cannon 179 | . . . . . 5 35 10 48 81 Launcher 66 | . 9 . . 2 . 33 2 2 18 Special . | . . . . . . . . . . Kinetic 1070 | 6 81 22 124 300 147 257 . 27 106 Thermal 802 | . . . . . 138 332 44 175 113 Explosive 52 | . 9 . . 2 . 19 2 2 18 Electromagnetic 86 | . . . . . 5 33 . . 48 Robot Hit Streak 28 | 2 7 5 18 12 17 28 8 15 15 Robot Miss Streak 10 | 1 7 4 5 5 4 10 1 8 4 Penetration Max 1 | . . . . . . 1 . 1 1 Secondary Targets 31 | . 1 . 1 8 4 12 . 5 . Max Gunslinging Chain 2 | . 1 . 1 1 1 1 . 2 . Shots Hit Robots 1293 | 4 44 11 69 174 208 462 21 123 177 Core Hits 780 | 3 32 6 35 72 112 340 10 68 102 Critical Kills 9 | . . . 1 1 2 1 . . 4 Critical Parts Destroyed 11 | . . . 1 4 . 3 . . 3 Critical Strikes 36 | . . . 2 5 2 6 . 5 16 Burn 8 | . . . . . . 2 . 5 1 Destroy 21 | . . . 2 5 2 4 . . 8 Blast 1 | . . . . . . . . . 1 Corrupt 6 | . . . . . . . . . 6 Melee Attacks . | . . . . . . . . . . Impact . | . . . . . . . . . . Slashing . | . . . . . . . . . . Piercing . | . . . . . . . . . . Sneak Attacks . | . . . . . . . . . . Combat Hostiles . | . . . . . . . . . . Follow-up Attacks . | . . . . . . . . . . Damage Inflicted 36784 | 56 1167 198 1135 3084 4765 13826 880 4173 7500 Guns 24986 | 56 572 198 1132 2862 4314 9444 377 2690 3341 Cannons 3608 | . . . . . 105 593 158 866 1886 Explosions 7955 | . 576 . . 174 317 3697 345 610 2236 Melee . | . . . . . . . . . . Ramming 235 | . 19 . 3 48 29 92 . 7 37 Kinetic 12581 | 56 572 198 1132 2862 1523 3367 . 553 2318 Thermal 15767 | . . . . . 3026 6815 535 3343 2048 Explosive 5764 | . 576 . . 174 . 2177 345 270 2222 Electromagnetic 2437 | . . . . . 187 1375 . . 875 Impact . | . . . . . . . . . . Slashing . | . . . . . . . . . . Piercing . | . . . . . . . . . . Highest Corruption 52 | . . . . . 2 20 1 2 52 Average Corruption 7 | . . . . . 1 9 1 1 14 Corruption Purged . | . . . . . . . . . . Corruption Blocked . | . . . . . . . . . . Effects 223 | . . . . . 5 151 4 11 52 Message Errors 51 | . . . . . . 34 . 3 14 Matter Fused 47 | . . . . . 1 31 1 1 13 Heat Flow Errors 42 | . . . . . 1 24 . 4 13 Energy Discharges 18 | . . . . . 1 14 1 1 1 Parts Fused 1 | . . . . . . 1 . . . Data Loss (minor) 24 | . . . . . 2 20 . 2 . Data Loss (major) 11 | . . . . . . 7 1 . 3 Misfires 11 | . . . . . . 8 1 . 2 Alerts 7 | . . . . . . 5 . . 2 Weapon Failures 11 | . . . . . . 7 . . 4 Overload Shots 11 | . . . . . . . 11 . . Overflow Damage 407 | . 1 . . . 66 102 63 55 120 Projectiles 66 | . . . . . . 12 . 6 48 Explosions 341 | . 1 . . . 66 90 63 49 72 Melee . | . . . . . . . . . . Knockbacks 8 | . . . . 1 . 2 . . 5 Impact 4 | . . . . 1 . 2 . . 1 Kinetic 4 | . . . . . . . . . 4 Secondary . | . . . . . . . . . . Self-Inflicted Damage 523 | . 40 . . . 43 342 . . 98 Shots 20 | . 4 . . . 1 12 . . 3 Rammed 31 | . 4 . 2 3 4 11 . 1 6 Targets Rammed 34 | . 4 . 2 5 5 11 . 1 6 Kicked . | . . . . . . . . . . Crushed 3 | . . . . 2 1 . . . . Highest Temperature 503 | . 24 12 162 387 306 297 298 503 334 Average Temperature 73 | . 5 6 49 91 56 61 95 131 96 Received Heat Transfer 3071 | . 78 . 78 558 296 1274 . 150 637 Effects 11 | . . . . 5 . . . 6 . Shutdowns 1 | . . . . . . . . 1 . Energy Bleed 1 | . . . . 1 . . . . . Interference 4 | . . . . 3 . . . 1 . Matter Decay 1 | . . . . . . . . 1 . Short Circuit 2 | . . . . . . . . 2 . Damage (minor) 2 | . . . . 1 . . . 1 . Siege Activations . | . . . . . . . . . . Martial Activations . | . . . . . . . . . . Shielding Activations . | . . . . . . . . . . Robots Disrupted 4 | . . . . . . . . . 4 Combat Hostiles 4 | . . . . . . . . . 4 Robots Corrupted 4 | . . . . . . 1 . . 3 Combat Hostiles 4 | . . . . . . 1 . . 3 Parts Fried 5 | . . . . . . 1 . . 4 Impact Corruptions . | . . . . . . . . . . Robots Melted 11 | . . . . . 2 7 . 1 1 Combat Hostiles 11 | . . . . . 2 7 . 1 1 Parts Melted 89 | . . . . . 19 47 5 12 6 Heat Transferred 29317 | . . . . . 6200 14252 768 5403 2694 Parts Sabotaged . | . . . . . . . . . . Parts Stolen . | . . . . . . . . . . Parts Stripped . | . . . . . . . . . . Power Chain Reactions 4 | . . . . . . 4 . . . Alert | -11 -10 -10 -9 -8 -7 -6 -5 -5 -4 ------- Run | Yrd Mat Min Mat Mat Fac Fac Fac Ext Fac Maximum Alert Level 5 | . 1 . 1 2 2 5 3 4 2 Low Security (%) 24 | 100 77 100 58 34 41 4 . . . Level 1 27 | . 22 . 41 47 41 19 . . 44 Level 2 20 | . . . . 18 16 24 . 22 55 Level 3 15 | . . . . . . 17 100 65 . Level 4 6 | . . . . . . 19 . 11 . Level 5 4 | . . . . . . 16 . . . High Security . | . . . . . . . . . . Max Security . | . . . . . . . . . . Peak Influence 1984 | 10 270 60 267 441 592 1984 971 1389 680 Initial 971 | . . 60 . 87 193 287 971 429 680 Average 521 | 1 102 10 153 254 234 902 852 850 448 Influence Increases 9293 | 10 513 . 512 993 957 2757 281 1912 1358 Destroy 0b10 Robot/C 5280 | . 240 . 320 600 500 1720 140 1040 720 Destroy 0b10 Robot/NC 565 | 10 50 . 55 80 95 160 5 50 60 Destroy Leader 1198 | . 74 . 88 150 178 420 20 96 172 Allied During Kill 519 | . . . 9 . . 31 . 476 3 Successful Hack 131 | . 38 . 5 9 24 43 . . 12 Select Force Hacks 50 | . . . . 50 . . . . . Disable Machine 600 | . 30 . 30 30 135 120 60 90 105 Destroy Structure 575 | . 36 . 5 29 25 128 56 100 196 Partial Spotted 30 | . . . . 15 . 15 . . . Lose Combat Pursuer 345 | . 45 . . 30 . 120 . 60 90 Influence Decreases 8745 | 10 358 155 304 775 797 1359 1389 1399 2199 Entered New Map 2917 | . . 95 . 121 233 299 1013 447 709 Time Decay 4128 | 10 358 60 294 614 524 770 356 522 620 Lost Part 1000 | . . . 10 40 40 270 20 70 550 Lost Ally 400 | . . . . . . 20 . 360 20 Purge Threat 300 | . . . . . . . . . 300 Squads Dispatched 79 | . 4 . . 5 13 37 3 5 12 Investigation 6 | . 2 . . 1 . . 2 1 . Extermination 19 | . . . . . 4 9 1 . 5 Reinforcement 24 | . 2 . . 3 . 11 . 2 6 Assault 11 | . . . . . . 8 . 2 1 Garrison 19 | . . . . 1 9 9 . . . Intercept . | . . . . . . . . . . Searches Triggered . | . . . . . . . . . . Construction Impeded 6 | . . . . . . 4 . 1 1 Haulers Reinforced 2 | . . . . . . 1 . . 1 Active Scanning Responses . | . . . . . . . . . . Cargo Convoy Interrupts . | . . . . . . . . . . Stealth | -11 -10 -10 -9 -8 -7 -6 -5 -5 -4 --------- Run | Yrd Mat Min Mat Mat Fac Fac Fac Ext Fac Distress Signals 25 | . 2 1 6 4 1 7 . 2 2 Communications Jammed . | . . . . . . . . . . Distress Signals . | . . . . . . . . . . Times Spotted 374 | . 27 8 23 41 34 123 7 54 57 Peak Tracking Total 9 | . 6 5 6 6 5 7 4 6 9 Tactical Retreats 21 | . 3 2 . 2 . 7 . 3 4 Traps | -11 -10 -10 -9 -8 -7 -6 -5 -5 -4 ------- Run | Yrd Mat Min Mat Mat Fac Fac Fac Ext Fac Traps Triggered 9 | . 2 . . . 1 2 2 2 . Indirectly . | . . . . . . . . . . Trap Hack Attempts . | . . . . . . . . . . Triggered . | . . . . . . . . . . Disarmed . | . . . . . . . . . . Reprogrammed . | . . . . . . . . . . Reused . | . . . . . . . . . . Traps Extracted . | . . . . . . . . . . Installed . | . . . . . . . . . . Triggered . | . . . . . . . . . . Machines | -11 -10 -10 -9 -8 -7 -6 -5 -5 -4 ---------- Run | Yrd Mat Min Mat Mat Fac Fac Fac Ext Fac Machines Disabled 43 | . 2 . 2 2 9 8 4 9 7 Max in Single Turn 4 | . 1 . 1 1 4 2 1 3 1 Energy Cycler 2 | . . . . . . . . 2 . Machines Repaired . | . . . . . . . . . . Machines Dismantled 5 | . . . . . . . 4 1 . Machines Sabotaged 1 | . . . . 1 . . . . . Overloaded Fab Kills . | . . . . . . . . . . Hacking | -11 -10 -10 -9 -8 -7 -6 -5 -5 -4 --------- Run | Yrd Mat Min Mat Mat Fac Fac Fac Ext Fac Machines Accessed 33 | . 5 . 1 6 4 9 1 4 3 Terminals 23 | . 4 . 1 6 2 5 . 4 1 Fabricators 4 | . . . . . 1 3 . . . Repair Stations 3 | . . . . . 1 1 . . 1 Recycling Units 2 | . 1 . . . . . 1 . . Scanalyzers . | . . . . . . . . . . Garrison Access 1 | . . . . . . . . . 1 Total Hacks 76 | . 12 . 2 16 8 20 2 6 10 Successful 32 | . 8 . 1 11 1 7 . 1 3 Failed 42 | . 3 . 1 4 7 13 2 5 7 Catastrophic 11 | . . . 1 . . 5 . 4 1 Database Lockouts 2 | . 1 . . 1 . . . . . Manual 23 | . 6 . 1 12 . 3 . 1 . Terminals 55 | . 10 . 2 16 5 11 . 6 5 Fabricators 8 | . . . . . 2 6 . . . Repair Stations 6 | . . . . . 1 3 . . 2 Recycling Units 4 | . 2 . . . . . 2 . . Scanalyzers . | . . . . . . . . . . Garrison Access 3 | . . . . . . . . . 3 Terminal Hacks 21 | . 4 . 1 8 1 4 . 1 2 Record 1 | . . . . . . . . 1 . Robot Analysis 7 | . 2 . 1 2 1 1 . . . Prototype ID Bank 1 | . 1 . . . . . . . . Branch Access Points 1 | . . . . 1 . . . . . Terminal Index 1 | . 1 . . . . . . . . Alert Level 6 | . . . . 3 . 3 . . . Unreport Threat 2 | . . . . . . . . . 2 Locate Traps 1 | . . . . 1 . . . . . Zone Layout 1 | . . . . 1 . . . . . Fabricator Hacks 2 | . . . . . . 2 . . . Network Status 1 | . . . . . . 1 . . . Build 1 | . . . . . . 1 . . . Repair Station Hacks 2 | . . . . . . 1 . . 1 Scan Component 2 | . . . . . . 1 . . 1 Recycling Unit Hacks . | . . . . . . . . . . Scanalyzer . | . . . . . . . . . . Garrison Access Hacks . | . . . . . . . . . . Unauthorized Hacks 7 | . 4 . . 3 . . . . . Terminals 5 | . 2 . . 3 . . . . . Botnet 4 | . 2 . . 2 . . . . . Sabotage 1 | . . . . 1 . . . . . Fabricators . | . . . . . . . . . . Repair Stations . | . . . . . . . . . . Recycling Units 2 | . 2 . . . . . . . . Reject 1 | . 1 . . . . . . . . Mask 1 | . 1 . . . . . . . . Scanalyzers . | . . . . . . . . . . Garrison Access . | . . . . . . . . . . Data Cores Recovered 3 | . . . . 1 . 2 . . . Used . | . . . . . . . . . . Hacking Detections 29 | . 4 . 1 3 4 9 1 4 3 Full Trace Events 2 | . . . . . . . 1 1 . Feedback Events . | . . . . . . . . . . Feedback Blocked . | . . . . . . . . . . Robot Schematics Acquired . | . . . . . . . . . . Robots Built 2 | . . . . . . 2 . . . Authchips . | . . . . . . . . . . Time 50 | . . . . . . 50 . . . Total Robot Build Rating 10 | . . . . . . 10 . . . Part Schematics Acquired . | . . . . . . . . . . Parts Built . | . . . . . . . . . . Authchips . | . . . . . . . . . . Time . | . . . . . . . . . . Total Part Build Rating . | . . . . . . . . . . Part Studies Acquired . | . . . . . . . . . . Parts Repaired . | . . . . . . . . . . Time . | . . . . . . . . . . Parts Recycled . | . . . . . . . . . . Recycled Matter . | . . . . . . . . . . Retrieved Matter . | . . . . . . . . . . Retrieved Components . | . . . . . . . . . . Parts Scanalyzed . | . . . . . . . . . . Part Schematics Acquired . | . . . . . . . . . . Parts Damaged . | . . . . . . . . . . Bothacking | -11 -10 -10 -9 -8 -7 -6 -5 -5 -4 ------------ Run | Yrd Mat Min Mat Mat Fac Fac Fac Ext Fac Used RIF Installer . | . . . . . . . . . . Robots Hacked . | . . . . . . . . . . Non-combat . | . . . . . . . . . . Combat . | . . . . . . . . . . Robot Hacks Applied . | . . . . . . . . . . Relay Couplers Released 3 | . . . . . . . . . 3 Programmers 3 | . . . . . . . . . 3 Fabnet Peak Effective % . | . . . . . . . . . . Robots Rewired 18 | . . . . . . . . 17 1 Allies Hacked 2 | . . . . . . 2 . . . Hacks Repelled . | . . . . . . . . . . Allies | -11 -10 -10 -9 -8 -7 -6 -5 -5 -4 -------- Run | Yrd Mat Min Mat Mat Fac Fac Fac Ext Fac Total Allies 26 | . . 1 . . . 2 . 22 1 Largest Group 10 | . . 1 1 . . 2 . 10 2 Highest-Rated Group 438 | . . 31 31 . . 82 . 438 177 Highest-Rated Ally 159 | . . 31 31 . . 41 . 159 149 Total Orders . | . . . . . . . . . . Ally Attacks 226 | . . . 19 . . 20 . 181 6 Total Damage 5388 | . . . 235 . . 683 . 4401 69 Kills 40 | . . . 4 . . 4 . 32 . Allies Corrupted . | . . . . . . . . . . Allies Melted . | . . . . . . . . . . Intel | -11 -10 -10 -9 -8 -7 -6 -5 -5 -4 ------- Run | Yrd Mat Min Mat Mat Fac Fac Fac Ext Fac Active Infowar (turns) 16126 | 20 1403 378 754 2011 2542 4666 813 1450 2089 Optics 779 | . . . . . . . . . 779 Sensors 4288 | . . . . . . 2247 788 66 1187 Terrain 1271 | . . . . . . . 726 545 . Seismic 4963 | 20 1403 378 754 2011 397 . . . . T.N.C. 11539 | . . . . . 2521 4666 813 1450 2089 Robot Analysis Total 7 | . 2 . 1 2 1 1 . . . Derelict Logs Recovered . | . . . . . . . . . . Drone Launches . | . . . . . . . . . . Drone Recoveries . | . . . . . . . . . . Exploration | -11 -10 -10 -9 -8 -7 -6 -5 -5 -4 ------------- Run | Yrd Mat Min Mat Mat Fac Fac Fac Ext Fac Turns Passed 16215 | 87 1403 378 754 2033 2542 4666 813 1450 2089 Spaces Moved 5463 | 43 498 143 236 691 897 1551 272 467 665 Core 4 | 4 . . . . . . . . . Treads 4460 | 39 498 143 236 691 897 1246 . 266 444 Legs 475 | . . . . . . . 272 201 2 Wheels 524 | . . . . . . 305 . . 219 Hover . | . . . . . . . . . . Flight . | . . . . . . . . . . Fastest Speed 50 | 50 160 240 240 240 230 145 190 190 190 Average Speed 232 | 149 246 240 240 240 233 231 211 220 232 Slowest Speed 400 | 160 320 240 240 320 312 400 260 320 312 Overloaded Moves . | . . . . . . . . . . Propulsion Burnouts . | . . . . . . . . . . Robots Hopped . | . . . . . . . . . . Potential Cave-ins . | . . . . . . . . . . Cave-ins Triggered 1 | . . . . . . . . 1 . Exploration Rate (%) 39 | 5 96 38 27 66 30 37 6 71 17 Regions Visited 9 Branch Regions 2 Pre-discovered Areas . | . . . . . . . . . . Known Exits Taken 4 | . . . . . 1 1 1 1 . Unknown Exits Taken 5 | 1 1 1 1 1 . . . . . Scrap Searched 1 | . . 1 . . . . . . . Spaces Dug 2 | . . . . . . . 2 . . Terrain Destroyed 430 | . 34 . . 25 28 144 33 63 103 Melee . | . . . . . . . . . . Projectile 61 | . . . . . . 12 7 15 27 AOE 369 | . 34 . . 25 28 132 26 48 76 Terrain Rammed . | . . . . . . . . . . Walls Destroyed . | . . . . . . . . . . Machines Disabled . | . . . . . . . . . . Actions | -11 -10 -10 -9 -8 -7 -6 -5 -5 -4 --------- Run | Yrd Mat Min Mat Mat Fac Fac Fac Ext Fac Total 7590 | 57 588 161 375 911 1166 2173 419 766 974 Wait 710 | . 10 7 69 87 114 224 57 74 68 Move 5454 | 42 497 142 235 690 896 1550 271 466 665 Hop . | . . . . . . . . . . Pick Up 140 | 3 17 1 9 10 19 36 7 10 28 Fast Attach 70 | 6 . . 2 5 8 19 4 3 23 Attach 93 | . 1 . 4 6 7 27 7 6 35 Detach 20 | . . . 1 3 4 3 2 . 7 Swap 150 | . 6 . 7 12 12 71 8 20 14 Drop 132 | . 1 . 15 14 27 41 9 13 12 Fire 629 | 6 52 11 31 79 74 189 24 54 109 Melee . | . . . . . . . . . . Ram . | . . . . . . . . . . Kick . | . . . . . . . . . . Crush 34 | . 4 . 2 5 5 11 . 1 6 Escape Stasis 7 | . . . . . . . . 7 . Rewire 113 | . . . . . . 2 . 104 7 Trap . | . . . . . . . . . . Miscellaneous 38 | . . . . . . . 30 8 . Route ------- -11/Scrapyard -10/Materials (discovered 5 exits: *Mat x3 / [*Min x2]) -10/Mines -9/Materials -8/Materials (discovered 4 exits: *Fac x2 / *Sto x2) -7/Factory -6/Factory -5/Factory -5/Extension (discovered 3 exits: *Fac x2 / [*Cet]) -4/Factory History --------- Turn | Location | Event 2 | -11/Scrapyard | Met Revision 17 14 | -11/Scrapyard | Discovered new exit (range 16) 88 | -11/Scrapyard | Entered Materials 130 | -10/Materials | Central database locked down 302 | -10/Materials | Build established: Mutant 361 | -10/Materials | Discovered new exit (range 14) 509 | -10/Materials | Discovered new exit (range 10) 1096 | -10/Materials | Discovered new exit (range 14) 1332 | -10/Materials | Discovered new exit (range 15) 1385 | -10/Materials | Discovered new exit (range 5) 1491 | -10/Materials | Entered Mines 1498 | -10/Mines | Received a Rocket Launcher from a helpful Derelict 1521 | -10/Mines | Found a hidden stash of uninstalled traps 1569 | -10/Mines | Found a Scrap Suit stashed away for nefarious purposes 1640 | -10/Mines | Assembled infested the area 1857 | -10/Mines | Discovered new exit (range 6) 1861 | -10/Mines | Received a Mining Laser from a helpful Derelict 1869 | -10/Mines | Entered Materials 1869 | -9/Materials | Accompanied by 1 ally 1869 | -9/Materials | Evolved 2 slots: Weapon x2 2346 | -9/Materials | Build established: Scavenger-Gunner 2587 | -9/Materials | Discovered new exit (range 8) 2623 | -9/Materials | Entered another Materials area 2623 | -8/Materials | Evolved 2 slots: Propulsion x1, Utility x1 3025 | -8/Materials | Discovered new exit (range 7) 3255 | -8/Materials | Identified exit to Storage 3408 | -8/Materials | Discovered new exit (range 4) 3730 | -8/Materials | Central database locked down 3901 | -8/Materials | Garrison activated, responded to threat 4114 | -8/Materials | Discovered new exit (range 5) 4656 | -8/Materials | Entered Factory 4656 | -7/Factory | Evolved 2 slots: Utility x2 5528 | -7/Factory | Garrison activated, responded to threat 6006 | -7/Factory | Build established: Scavenger-Skirmisher 6366 | -7/Factory | Garrison activated, responded to threat 6847 | -7/Factory | Discovered new exit (range 15) 6867 | -7/Factory | Garrison activated, responded to threat 7198 | -7/Factory | Identified exit to Factory 7198 | -7/Factory | Entered another Factory area 7198 | -6/Factory | Evolved 2 slots: Utility x2 7483 | -6/Factory | Build established: Scavenger-Tank 7900 | -6/Factory | Build established: Scavenger-Skirmisher 8124 | -6/Factory | Garrison activated, responded to threat 8138 | -6/Factory | Spotted B-75 Beast 8159 | -6/Factory | Destroyed B-75 Beast 8247 | -6/Factory | Build established: Scavenger-Gunner 8297 | -6/Factory | Garrison activated, responded to threat 8791 | -6/Factory | Build established: Scavenger-Skirmisher 8948 | -6/Factory | First assault squad dispatched 9307 | -6/Factory | System corruption reached 10% 9597 | -6/Factory | Garrison activated, responded to threat 9616 | -6/Factory | Lost 4 parts (1n1u2w) 9812 | -6/Factory | Build established: Scavenger-Tank 9846 | -6/Factory | Fabricated H-66 Slayer? 9890 | -6/Factory | Garrison activated, responded to threat 10214 | -6/Factory | P-60 Hacker assimilated allied Slayer 5b 10829 | -6/Factory | Core integrity fell below 50% 10853 | -6/Factory | Lost 6 parts (1p2n1u2w) 11053 | -6/Factory | Build established: Scavenger-Skirmisher 11068 | -6/Factory | Garrison activated, responded to threat 11701 | -6/Factory | Lost 3 parts (1n2w) 11838 | -6/Factory | Discovered new exit (range 15) 11862 | -6/Factory | Identified exit to Factory 11864 | -6/Factory | Entered another Factory area 11864 | -5/Factory | Evolved 2 slots: Power x1, Propulsion x1 12539 | -5/Factory | Discovered new exit (range 5) 12549 | -5/Factory | Identified exit to Extension 12677 | -5/Factory | Entered Extension 12868 | -5/Extension | Rescued A7 12876 | -5/Extension | Energy Cycler disabled 12876 | -5/Extension | Rescued a captive Derelict 12881 | -5/Extension | Rescued a captive Derelict 12881 | -5/Extension | Rescued a captive Derelict 12882 | -5/Extension | Rescued a captive Derelict 12889 | -5/Extension | Rescued a captive Derelict 13196 | -5/Extension | Spotted B-75 Beast 13244 | -5/Extension | Spotted B-75 Beast 13245 | -5/Extension | Destroyed B-75 Beast 13270 | -5/Extension | Destroyed B-75 Beast 13294 | -5/Extension | Discovered new exit (range 15) 13301 | -5/Extension | Lost 3 parts (1n2w) 13537 | -5/Extension | Build established: Scavenger-Gunner 13577 | -5/Extension | First assault squad dispatched 13714 | -5/Extension | Lost 5 allies 13932 | -5/Extension | Crushed by falling debris 13958 | -5/Extension | Lost 11 allies 14075 | -5/Extension | Disrupted transfer network 14078 | -5/Extension | Discovered new exit (range 11) 14091 | -5/Extension | Discovered new exit (range 7) 14109 | -5/Extension | Destroyed 8 combat bots 14113 | -5/Extension | Identified exit to Factory 14127 | -5/Extension | Entered Factory 14127 | -4/Factory | Accompanied by 2 allies (A7) 14127 | -4/Factory | Evolved 2 slots: Utility x2 14229 | -4/Factory | Build established: Scavenger-Skirmisher 15156 | -4/Factory | Lost 8 parts (1p2n2u3w) 15269 | -4/Factory | System corruption reached 10% 15289 | -4/Factory | Core integrity fell below 50% 15329 | -4/Factory | Lost 19 parts (2p5n2u10w) 15364 | -4/Factory | P-80 Master assimilated allied Disruptor 7a 15976 | -4/Factory | Lost 10 parts (2n2u6w) 16032 | -4/Factory | Lost 3 parts (1p1u1w) 16037 | -4/Factory | Build established: Scavenger-Gunner 16127 | -4/Factory | First assault squad dispatched 16186 | -4/Factory | Core integrity fell below 20% 16192 | -4/Factory | System corruption reached 30% 16216 | -4/Factory | Destroyed by P-70 Sage with High-powered Shock Rifle Last Messages --------------- 16201_ Critical hit (Burn: +37). 16201_ Slammed into P-70 Sage. 16203_ Acquired 4 matter. 16203_ Slug penetrates G-67 Veteran. 16207_ Hvy. Disruptor Cannon destroyed. 16209_ P-70 Sage resets G-67 Veteran, system corruption cleaned. 16209_ KE Penetrator destroyed. 16209_ Integrated Corrupted Coil Gun (+6). 16209_ Imp. Treads destroyed. 16210_ P-70 Sage resets G-67 Veteran, system corruption cleaned. 16210_ Integrated Corrupted Coil Gun (+13). 16211_ Slug penetrates P-70 Sage. 16212_ Arm. Medium Treads destroyed. 16213_ P-70 Sage resets G-67 Veteran, system corruption cleaned. 16214_ System corrupted: Coil Gun jammed. 16214_ Slug penetrates P-70 Sage. 16214_ Destroyed Mic. Fission Core. Map ----- +----------------------------------------------------+ | ?????????????????????????????????????????????????? | | ?????????????????????????????????????????????????? | | ?????????????????????????????????????????????????? | | ?????????????????????????????????????????????????? | | ?????????????????????????????????????????????????? | | ?????????????????????????????????????????????????? | | ?????????????????????????????????????????????????? | | ?????????????????????????????????????????????????? | | ?????????????????????????????????????????????????? | | ?????????????????????????????????????????????????? | | ?????????????????????????????????????????????????? | | ?????????????????????????????????????????????????? | | ?????????????????????????????????????????????????? | | ?????????????????????????????????????????????????? | | ?????????????????????????????????????????????????? | | ?????????????????????????????????????????????????? | | ?????????????????????????????????????????????????? | | ????????????????????????????????????###+###??????? | | ????????????????????????????????????#!! #??????? | | ??????????????##############????????#%!! #??????? | | ??????????????# #????????#!! ####### | | ??????????????# g########## A | | ????????????????"""""" =gg! % %######## | | ????????????????""""""" %g########## %#####??? | | ??????????????? """"""" p%%#????????# # ? | | ??????????????? """"" g @ #????????# # """# | | ??????????????+ p g #????????#^^^ ^# """# | | ??????????????# ! #????????# # """# | | ??????????????# " " #????????# # ""# | | ??????????????# "Y" #????????# % # ""# | | ??????????????# """ #????????# # # | | ??????????????? #????????# =# """# | | ??????????????##############????????# # """# | | ??????????????????????????????????### % # """# | | ??????????????????????????????????+ # "# | | ??????????????????????????????????### + ""# | | ????????????????????????????????????# # ! # | | ????????????????????????????????????# # # | | ????????????????????????????###+##### ##+##### | | ?????????????????????? = # | | ?????????????????????? | # | | ?????????????????????? """"" + | | ?????????????????????????????"Y"" # | | ?????????????????????????? ^ # | | ?????????????????????????? ^ ##########+##+# | | ????????????????????????? ?# # | | ???????????????????????? ?# # | | ????????????????????????? A ??# # | | ????????????????????????? ???# # | | ?????????????????????????? ????# # | +----------------------------------------------------+ Best States ------------- Heat Dissipation 141 Energy Generation 35 Energy Capacity 780 Matter Stores 300 Matter Capacity 300 Sight Range 20 Robot Scan Range 16 Terrain Scan Range 20 Terrain Scan Density 10 Base Temperature (-) 200 Weapon Cycling 15 Evasion (%) 40 Targeting Accuracy 8 Target Analysis 11 Recoil Reduction 4 Offensive Hacking 10 Item Schematics ----------------- None Robot Schematics ------------------ None Fabricated ------------ H-66 Slayer | x2 | -6/Factory | Preloaded Repaired ---------- Nothing Studied --------- None Alien Tech Used ----------------- None Achievements -------------- DIY Cooler Explosive Keycard Insider Info Out Of My Way You Again Challenges ------------ None Game ------ Seed WardroneAngularSpoofer Manual? 0 Play Time 02:08:29 Cumulative 275.5 hours Start 2025.10.26 @ 10:50:12 End 2025.10.28 @ 16:53:43 Sessions 5 Manual Loads 0 Difficulty Rogue Special Mode None Game No. 143 Rogue 143 Adventurer 0 Explorer 0 Win Type - Total 5 Types 5/0/0/0/0/0/0/0/0/0 Lore% 55 Gallery% 64 Achievement% 41 Wizard Run 0 Options --------- Layout 1 ASCII 0 Keyboard 0 Movement Numpad Keybinds 0 Fullscreen 1 Font 24/Smallcaps Map View 50x35 Zoom Use 0% Tactical HUD 1 Map Filters NONE Filters NONE Steam 1 RUN: 692267f7-347f-4762-b2a4-281e7c294d0c